bitfinex-derivatives/quotes_BTCF0:USTF0_20250528
["timestamp","ask_amount","ask_price","bid_price","bid_amount"]
[1748394321570,1.62627006,109130.0,109120.0,6e-08]
[1748394322085,1.62627006,109130.0,109110.0,0.00091646]
[1748394322086,0.1831935,109120.0,109110.0,0.00091646]
[1748394322387,1.05265309,109120.0,109110.0,0.00091646]
[1748394322789,1.17319142,109120.0,109110.0,0.00091646]
[1748394323378,1.17317025,109120.0,109110.0,0.00091646]
[1748394325277,1.05263192,109120.0,109110.0,0.00091646]
[1748394325491,1.17317025,109120.0,109110.0,0.00091646]
[1748394331977,1.17317769,109120.0,109110.0,0.00091646]
[1748394333291,1.2302225,109120.0,109110.0,0.00091646]
[1748394334084,1.5910225,109120.0,109110.0,0.00091646]
[1748394334991,1.5986025,109120.0,109110.0,0.00091646]
[1748394335787,1.5986025,109120.0,109110.0,0.00103646]
[1748394336193,1.56033873,109120.0,109110.0,0.00103646]
[1748394336795,1.56133873,109120.0,109110.0,0.00103646]
[1748394337399,1.64715564,109120.0,109110.0,0.00103646]
[1748394337607,1.76769397,109120.0,109110.0,6e-08]
[1748394337797,0.1832114,109110.0,109100.0,0.1]
[1748394338098,1.37211509,109110.0,109100.0,0.12]
[1748394338297,1.4291599,109110.0,109100.0,0.12]
[1748394338499,1.7899599,109110.0,109100.0,0.12]
[1748394340404,1.74711287,109110.0,109100.0,0.12]
[1748394340599,1.78999399,109110.0,109100.0,0.12]
[1748394341900,1.66945566,109110.0,109100.0,0.12]
[1748394344598,1.62657454,109110.0,109100.0,0.12]
[1748394344797,1.66946423,109110.0,109100.0,0.12]
[1748394345198,1.66946423,109110.0,109100.0,0.1426]
[1748394345706,1.04655621,109110.0,109100.0,0.1426]
[1748394345906,1.04655621,109110.0,109100.0,0.16936784]
[1748394345907,0.58214288,109110.0,109100.0,0.16936784]
[1748394346106,0.41214288,109110.0,109100.0,0.18796784]
[1748394346407,0.59214288,109110.0,109100.0,0.03682618]
[1748394346603,0.78214288,109110.0,109100.0,0.03682618]
[1748394347597,0.85546288,109110.0,109100.0,0.03682618]
[1748394348910,0.81256973,109110.0,109100.0,0.03682618]
[1748394349118,0.8554735,109110.0,109100.0,0.03682618]
[1748394350514,0.85995559,109110.0,109100.0,0.03682618]
[1748394352099,0.85995559,109110.0,109100.0,0.10621659]
[1748394353307,0.85996916,109110.0,109100.0,0.10621659]
[1748394354114,0.85996916,109110.0,109100.0,0.08939041]
[1748394354315,1.22076916,109110.0,109100.0,0.08951041]
[1748394354708,1.22076916,109110.0,109100.0,0.02012]
[1748394354909,1.35543496,109110.0,109100.0,0.08951041]
[1748394355206,1.44125187,109110.0,109100.0,0.08951041]
[1748394355411,1.44125187,109110.0,109100.0,0.08939041]
[1748394355611,1.44125187,109110.0,109100.0,0.08951041]
[1748394356308,1.50540187,109110.0,109100.0,0.08951041]
[1748394356908,1.50540187,109110.0,109100.0,0.02012]
[1748394358307,1.50640187,109110.0,109100.0,0.02012]
[1748394359308,1.26532521,109110.0,109100.0,0.02012]
[1748394359519,1.50640187,109110.0,109100.0,0.02012]
[1748394360009,1.53740187,109110.0,109100.0,0.02012]
[1748394360514,1.53740187,109110.0,109100.0,1e-07]
[1748394360813,0.1832279,109100.0,109090.0,0.0721403]
[1748394361012,0.1832279,109100.0,109090.0,0.0921403]
[1748394361013,1.59848623,109100.0,109090.0,0.0921403]
[1748394361217,1.65570593,109100.0,109090.0,0.0921403]
[1748394361618,1.69861867,109100.0,109090.0,0.0921403]
[1748394364216,1.70792185,109100.0,109090.0,0.0921403]
[1748394364620,1.60928185,109100.0,109090.0,0.0921403]
[1748394365222,0.2458279,109100.0,109090.0,1.04079854]
[1748394365519,0.34030999,109100.0,109090.0,0.69980993]
[1748394365720,0.34030999,109100.0,109090.0,1.02980993]
[1748394366120,0.34030999,109100.0,109090.0,0.69980993]
[1748394366622,0.47084832,109100.0,109090.0,0.69980993]
[1748394367724,0.46084832,109100.0,109090.0,0.69980993]
[1748394367920,0.73084832,109100.0,109090.0,0.49966503]
[1748394368114,1.11394832,109100.0,109090.0,0.06621531]
[1748394368521,1.15686106,109100.0,109090.0,0.09235428]
[1748394368729,1.15683741,109100.0,109090.0,0.09235428]
[1748394368932,1.15683741,109100.0,109090.0,0.09247428]
[1748394369120,1.15683741,109100.0,109090.0,0.09235428]
[1748394369315,1.15683741,109100.0,109090.0,0.09247428]
[1748394370927,1.57847741,109100.0,109090.0,0.09247428]
[1748394372028,1.73429711,109100.0,109090.0,0.02286989]
[1748394373222,1.73429711,109100.0,109090.0,0.00286989]
[1748394373418,1.73429711,109100.0,109090.0,0.00274989]
[1748394373618,1.73429711,109100.0,109090.0,0.00286989]
[1748394376127,1.73429711,109100.0,109090.0,0.00314313]
[1748394377230,1.73427696,109100.0,109090.0,0.00314313]
[1748394378228,1.73527696,109100.0,109090.0,0.00314313]
[1748394378830,1.61473863,109100.0,109090.0,0.00314313]
[1748394379031,1.73527696,109100.0,109090.0,0.00314313]
[1748394381428,1.73528546,109100.0,109090.0,0.00314313]
[1748394382325,1.80860546,109100.0,109090.0,0.00314313]
[1748394383232,1.80860546,109100.0,109090.0,0.07274752]
[1748394383631,1.81617546,109100.0,109090.0,0.07274752]
[1748394383831,1.69563713,109100.0,109090.0,0.00314313]
[1748394384032,1.81617546,109100.0,109090.0,0.00314313]
[1748394384337,1.77329802,109100.0,109090.0,0.07274752]
[1748394385036,1.77329802,109100.0,109090.0,0.00314313]
[1748394386838,1.81623181,109100.0,109090.0,0.00314313]
[1748394387037,1.81623189,109100.0,109090.0,0.00314313]
[1748394387537,1.27405356,109100.0,109090.0,0.00314313]
[1748394387843,1.81623189,109100.0,109090.0,0.00314313]
[1748394388039,1.77333802,109100.0,109090.0,0.00314313]
[1748394395040,1.13251969,109100.0,109090.0,0.00314313]
[1748394395250,1.77333802,109100.0,109090.0,0.00314313]
[1748394397135,1.85915493,109100.0,109090.0,0.00314313]
[1748394397649,1.85915493,109100.0,109090.0,0.07274752]
[1748394398446,1.85915493,109100.0,109090.0,0.11634347]
[1748394399338,1.86215493,109100.0,109090.0,0.11734347]
[1748394399541,1.86215493,109100.0,109090.0,0.04773908]
[1748394401347,1.7416166,109100.0,109090.0,0.04773908]
[1748394401554,1.80493523,109100.0,109090.0,0.11755163]
[1748394401844,1.80493523,109100.0,109090.0,0.07395619]
[1748394402750,1.80493523,109100.0,109090.0,0.04776112]
[1748394403744,1.80493523,109100.0,109090.0,0.00414313]
[1748394403944,1.80493523,109100.0,109090.0,0.07398114]
[1748394404351,1.80493523,109100.0,109090.0,0.07386114]
[1748394405148,1.38329523,109100.0,109090.0,0.07386114]
[1748394405345,1.80493523,109100.0,109090.0,0.07386114]
[1748394407962,2.04739354,109100.0,109090.0,0.07386114]
[1748394408961,2.11155354,109100.0,109090.0,0.07386114]
[1748394413873,2.11155354,109100.0,109090.0,0.04765111]
[1748394416265,2.11155354,109100.0,109090.0,0.04765082]
[1748394416671,2.11155354,109100.0,109090.0,0.11748715]
[1748394416964,2.11155354,109100.0,109090.0,0.11748707]
[1748394417568,2.11155354,109100.0,109090.0,0.06983625]
[1748394417773,0.1832617,109080.0,109070.0,0.04106652]
[1748394418061,1.69811073,109080.0,109070.0,0.0109168]
[1748394418271,1.79381073,109080.0,109070.0,0.0109168]
[1748394418460,1.79378943,109080.0,109070.0,0.0109168]
[1748394418663,0.1832785,109070.0,109060.0,0.04335883]
[1748394418857,1.27070914,109070.0,109060.0,0.05183377]
[1748394419261,1.31369397,109070.0,109060.0,0.05183377]
[1748394419759,1.27067461,109070.0,109060.0,0.05183377]
[1748394419954,1.22308026,109070.0,109060.0,0.05183377]
[1748394420666,1.22307959,109070.0,109060.0,0.05183377]
[1748394421361,1.18016898,109070.0,109060.0,0.05183377]
[1748394421554,1.23055772,109070.0,109060.0,0.05183377]
[1748394421766,1.23255772,109070.0,109060.0,0.05183377]
[1748394421972,1.11149432,109070.0,109060.0,0.05183377]
[1748394422154,1.17525679,109070.0,109060.0,0.08383377]
[1748394423068,1.1459025,109070.0,109060.0,0.08383377]
[1748394423273,1.1887683,109070.0,109060.0,0.08383377]
[1748394423868,1.2529383,109070.0,109060.0,0.08383377]
[1748394425173,0.8921383,109070.0,109060.0,0.08383377]
[1748394425370,0.8492725,109070.0,109060.0,0.08383377]
[1748394425574,0.77555699,109070.0,109060.0,0.08383377]
[1748394425764,0.71917059,109070.0,109060.0,1.14589247]
[1748394426276,0.71917059,109070.0,109060.0,0.64482907]
[1748394427372,0.84023399,109070.0,109060.0,0.10073377]
[1748394427566,0.84023399,109070.0,109060.0,0.05183377]
[1748394427567,1.72127399,109070.0,109060.0,0.05183377]
[1748394427772,1.72127399,109070.0,109060.0,7e-08]
[1748394427773,1.82141474,109070.0,109060.0,7e-08]
[1748394427974,1.82141474,109070.0,109060.0,0.00012]
[1748394428175,1.82141341,109070.0,109060.0,0.00012]
[1748394428481,0.1832953,109060.0,109050.0,0.02239697]
[1748394428681,1.12161066,109060.0,109050.0,0.06239697]
[1748394429260,1.12161066,109060.0,109050.0,0.06251697]
[1748394430271,1.12161066,109060.0,109050.0,0.06351697]
[1748394433170,1.0787587,109060.0,109050.0,0.06351697]
[1748394434884,1.5004387,109060.0,109050.0,0.09531697]
[1748394435073,1.5004387,109060.0,109050.0,0.06351697]
[1748394435879,1.1396387,109060.0,109050.0,0.06351697]
[1748394436685,1.5004387,109060.0,109050.0,0.06351697]
[1748394437074,1.5004387,109060.0,109050.0,0.04203697]
[1748394438286,1.5432374,109060.0,109050.0,0.04203697]
[1748394440187,1.54324287,109060.0,109050.0,0.04203697]
[1748394440687,1.54772496,109060.0,109050.0,0.04203697]
[1748394444485,1.54775794,109060.0,109050.0,0.04203697]
[1748394444786,1.54327585,109060.0,109050.0,0.04203697]
[1748394445793,1.42669454,109060.0,109050.0,0.04203697]
[1748394445976,1.54775794,109060.0,109050.0,0.04203697]
[1748394447492,1.60504502,109060.0,109050.0,0.04203697]
[1748394448988,1.60510016,109060.0,109050.0,0.04203697]
[1748394449389,1.60510016,109060.0,109050.0,0.04103697]
[1748394449603,1.60610016,109060.0,109050.0,0.04103697]
[1748394452792,1.48503676,109060.0,109050.0,0.04103697]
[1748394452996,1.60610016,109060.0,109050.0,0.04103697]
[1748394453205,1.6061055,109060.0,109050.0,0.04103697]
[1748394453494,1.6061055,109060.0,109040.0,0.0141787]
[1748394453495,0.1833121,109050.0,109040.0,0.0141787]
[1748394453795,1.1382755,109050.0,109040.0,0.1341787]
[1748394454196,1.14751764,109050.0,109040.0,0.1341787]
[1748394454695,1.14751764,109050.0,109040.0,0.1351787]
[1748394455898,1.15199973,109050.0,109040.0,0.1351787]
[1748394456197,1.19489736,109050.0,109040.0,0.1351787]
[1748394457113,1.19489736,109050.0,109040.0,0.17532842]
[1748394457293,1.19489736,109050.0,109040.0,0.17544842]
[1748394457493,1.19489736,109050.0,109040.0,0.17444842]
[1748394457802,1.19797278,109050.0,109040.0,0.17444842]
[1748394460086,1.31903618,109050.0,109040.0,0.17444842]
[1748394460292,0.1833289,109040.0,109030.0,0.04323124]
[1748394460499,0.1833457,109030.0,109020.0,0.0013759]
[1748394460793,1.34420428,109030.0,109020.0,0.4813759]
[1748394461001,1.37233853,109030.0,109020.0,0.4544048]
[1748394461199,1.30112711,109030.0,109020.0,0.4544048]
[1748394462096,1.35831009,109030.0,109020.0,0.4544048]
[1748394462495,1.35831009,109030.0,109020.0,0.4542848]
[1748394462699,1.35831009,109030.0,109020.0,0.4554048]
[1748394463493,1.23724669,109030.0,109020.0,0.4554048]
[1748394464206,1.15140647,109030.0,109020.0,0.4554048]
[1748394464409,1.27246987,109030.0,109020.0,0.4554048]
[1748394465202,1.31530084,109030.0,109020.0,0.4554048]
[1748394467804,1.19423744,109030.0,109020.0,0.4554048]
[1748394469299,1.19523744,109030.0,109020.0,0.4544048]
[1748394470711,1.19509867,109030.0,109020.0,0.4544048]
[1748394471114,1.13791569,109030.0,109020.0,0.4544048]
[1748394471313,1.25897909,109030.0,109020.0,0.4544048]
[1748394472329,1.13791569,109030.0,109020.0,0.4544048]
[1748394475028,1.13789455,109030.0,109020.0,0.4544048]
[1748394475227,1.14237664,109030.0,109020.0,0.4544048]
[1748394475613,1.56409664,109030.0,109020.0,0.4544048]
[1748394476129,1.56809664,109030.0,109020.0,0.4554048]
[1748394478327,1.62527962,109030.0,109020.0,0.4554048]
[1748394478719,1.56809664,109030.0,109020.0,0.4554048]
[1748394479226,1.62527962,109030.0,109020.0,0.4554048]
[1748394479529,1.5681107,109030.0,109020.0,0.4554048]
[1748394479722,1.9289107,109030.0,109020.0,0.4554048]
[1748394479923,1.98609368,109030.0,109020.0,0.4554048]
[1748394480326,2.01889368,109030.0,109020.0,0.4554048]
[1748394481728,1.89783028,109030.0,109020.0,0.4554048]
[1748394481929,1.97610925,109030.0,109020.0,0.4554048]
[1748394482134,2.01890955,109030.0,109020.0,0.4554048]
[1748394484124,1.97611653,109030.0,109020.0,0.4554048]
[1748394486333,1.97616181,109030.0,109020.0,0.4554048]
[1748394487120,2.06200203,109030.0,109020.0,0.4554048]
[1748394489133,2.00481905,109030.0,109020.0,0.4554048]
[1748394489437,1.88375565,109030.0,109020.0,0.4554048]
[1748394489630,0.1833624,109020.0,109000.0,0.28321093]
[1748394489931,1.60355074,109010.0,109000.0,0.29321093]
[1748394490236,2.10573446,109010.0,109000.0,0.29321093]
[1748394490627,2.10573446,109010.0,109000.0,0.29333093]
[1748394490829,1.98467106,109010.0,109000.0,0.29421093]
[1748394491141,2.10573446,109010.0,109000.0,0.29433093]
[1748394491637,0.183396,109000.0,108990.0,0.00091747]
[1748394491823,1.18475457,109000.0,108990.0,0.21091747]
[1748394492028,1.18475457,109000.0,108990.0,0.21103747]
[1748394492230,1.12746356,109000.0,108990.0,0.21103747]
[1748394492435,1.12746356,109000.0,108990.0,0.21091747]
[1748394492936,1.12846356,109000.0,108990.0,0.21091747]
[1748394493136,1.12846356,109000.0,108990.0,0.21103747]
[1748394493930,1.55014356,109000.0,108990.0,0.21103747]
[1748394494228,1.60734983,109000.0,108990.0,0.21103747]
[1748394494738,1.60739845,109000.0,108990.0,0.21103747]
[1748394497142,1.52146193,109000.0,108990.0,0.21103747]
[1748394499143,1.52142986,109000.0,108990.0,0.21103747]
[1748394499635,1.56428938,109000.0,108990.0,0.21103747]
[1748394500635,1.56877147,109000.0,108990.0,0.21103747]
[1748394501445,1.60127147,109000.0,108990.0,0.21103747]
[1748394502442,1.63297147,109000.0,108990.0,0.21103747]
[1748394503234,1.66427147,109000.0,108990.0,0.21103747]
[1748394505138,1.70734847,109000.0,108990.0,0.21103747]
[1748394505333,1.70734847,109000.0,108990.0,0.21091747]
[1748394506248,1.70734847,109000.0,108990.0,0.21103747]
[1748394506742,1.82841187,109000.0,108990.0,0.21103747]
[1748394506945,1.82841187,109000.0,108990.0,0.21091747]
[1748394507147,1.82841187,109000.0,108990.0,0.21103747]
[1748394507347,1.70734847,109000.0,108990.0,0.21103747]
[1748394507645,1.67106428,109000.0,108990.0,0.21103747]
[1748394507835,1.70733324,109000.0,108990.0,0.21103747]
[1748394508653,1.70285115,109000.0,108990.0,0.21103747]
[1748394509750,1.70733324,109000.0,108990.0,0.21103747]
[1748394510846,1.70285115,109000.0,108990.0,0.21103747]
[1748394512545,0.1834291,108980.0,108970.0,0.04635292]
[1748394512738,1.06385708,108980.0,108970.0,0.04400729]
[1748394512941,1.18492048,108980.0,108970.0,0.04400729]
[1748394513153,1.28272048,108980.0,108970.0,0.04400729]
[1748394513648,1.16165708,108980.0,108970.0,0.04400729]
[1748394514842,0.96529708,108980.0,108970.0,0.04400729]
[1748394515043,0.01415816,108980.0,108970.0,1.1534409]
[1748394515244,0.00478804,108980.0,108970.0,1.11308069]
[1748394515444,0.18821724,108980.0,108970.0,2.66616767]
[1748394515642,0.00478804,108980.0,108970.0,1.16616767]
[1748394515839,0.18821724,108980.0,108970.0,1.16616767]
[1748394516039,0.18821724,108980.0,108970.0,0.86065827]
[1748394516238,0.57081724,108980.0,108970.0,0.74101729]
[1748394516443,0.22081724,108980.0,108970.0,0.59814734]
[1748394516649,0.37218064,108980.0,108970.0,0.50638334]
[1748394516950,0.78848366,108980.0,108970.0,0.10500729]
[1748394517147,0.82128366,108980.0,108970.0,0.10512729]
[1748394517352,0.82128366,108980.0,108970.0,0.10500729]
[1748394517353,0.70022026,108980.0,108970.0,0.10500729]
[1748394517653,0.70022026,108980.0,108970.0,0.10512729]
[1748394518156,0.70022026,108980.0,108970.0,0.14558334]
[1748394520659,0.70027155,108980.0,108970.0,0.14558334]
[1748394522857,0.70027155,108980.0,108970.0,0.32902934]
[1748394525947,0.32027155,108980.0,108970.0,0.26902934]
[1748394526150,0.53027155,108980.0,108970.0,0.55902934]
[1748394526854,0.58027155,108980.0,108970.0,0.54902934]
[1748394527248,0.58028037,108980.0,108970.0,0.54902934]
[1748394527649,0.53028037,108980.0,108970.0,0.55902934]
[1748394528154,0.53027983,108980.0,108970.0,0.55902934]
[1748394528363,0.53027983,108980.0,108970.0,0.56902934]
[1748394528863,0.56027984,108980.0,108970.0,0.50542934]
[1748394529159,0.70134324,108980.0,108970.0,0.52567137]
[1748394529658,0.65134324,108980.0,108970.0,0.51567137]
[1748394530159,0.69134239,108980.0,108970.0,0.50567137]
[1748394530362,0.68134239,108980.0,108970.0,0.50567137]
[1748394530559,0.68134239,108980.0,108970.0,0.34567137]
[1748394530855,0.80134239,108980.0,108970.0,0.36567137]
[1748394531755,1.16214239,108980.0,108970.0,0.18222537]
[1748394532662,1.16214239,108980.0,108970.0,0.36567137]
[1748394532853,1.16214239,108980.0,108970.0,0.18222537]
[1748394533060,1.16214239,108980.0,108970.0,0.18322537]
[1748394533259,1.20509863,108980.0,108970.0,0.18322537]
[1748394534155,1.20958072,108980.0,108970.0,0.18322537]
[1748394534364,1.13026273,108980.0,108970.0,0.14276932]
[1748394534560,1.20958283,108980.0,108970.0,0.18322537]
[1748394536467,1.20958283,108980.0,108970.0,0.14276932]
[1748394536852,1.20958283,108980.0,108970.0,0.18322537]
[1748394538159,1.08851943,108980.0,108970.0,0.18322537]
[1748394538962,1.088519,108980.0,108970.0,0.18322537]
[1748394539162,1.088519,108980.0,108970.0,0.44727872]
[1748394539163,0.50323691,108980.0,108970.0,0.44727872]
[1748394539465,0.50323691,108980.0,108970.0,0.89213477]
[1748394541571,0.50323382,108980.0,108970.0,0.89213477]
[1748394543064,0.50323382,108980.0,108970.0,0.86543477]
[1748394543264,0.50323382,108980.0,108970.0,0.72747137]
[1748394543669,0.50323382,108980.0,108970.0,0.54402537]
[1748394543873,0.36323382,108980.0,108970.0,0.54402537]
[1748394544077,0.37323382,108980.0,108970.0,0.54402537]
[1748394544370,0.36771591,108980.0,108970.0,0.54402537]
[1748394544565,0.37771591,108980.0,108970.0,0.54402537]
[1748394544868,0.37771591,108980.0,108970.0,0.36667137]
[1748394544869,0.69771591,108980.0,108970.0,0.36667137]
[1748394545064,0.37771591,108980.0,108970.0,0.36667137]
[1748394545259,0.36771591,108980.0,108970.0,0.36667137]
[1748394545566,0.37771591,108980.0,108970.0,0.36667137]
[1748394545768,0.3677488,108980.0,108970.0,0.36667137]
[1748394545965,0.3777488,108980.0,108970.0,0.18322537]
[1748394546161,0.3677488,108980.0,108970.0,0.18322537]
[1748394546357,0.3777488,108980.0,108970.0,0.21450537]
[1748394547459,0.3677488,108980.0,108970.0,0.39795137]
[1748394547676,0.3777488,108980.0,108970.0,0.21450537]
[1748394549566,0.6877488,108980.0,108970.0,0.21438537]
[1748394549764,0.3777488,108980.0,108970.0,0.21438537]
[1748394550269,0.3777898,108980.0,108970.0,0.21438537]
[1748394551174,0.3677898,108980.0,108970.0,0.21438537]
[1748394551372,0.7177898,108980.0,108970.0,0.21438537]
[1748394551573,0.3777898,108980.0,108970.0,0.21438537]
[1748394551969,0.3677898,108980.0,108970.0,0.21338537]
[1748394552180,0.3777898,108980.0,108970.0,0.21338537]
[1748394552568,0.3677898,108980.0,108970.0,0.21338537]
[1748394552765,0.3777898,108980.0,108970.0,0.21338537]
[1748394552966,0.3677898,108980.0,108970.0,0.21238537]
[1748394553169,1.1916532,108980.0,108970.0,0.21238537]
[1748394553474,1.1916532,108980.0,108970.0,0.21250537]
[1748394556777,1.24885947,108980.0,108970.0,0.21250537]
[1748394556980,1.24885947,108980.0,108970.0,0.21238537]
[1748394557175,1.24885947,108980.0,108970.0,0.21250537]
[1748394557576,1.24885947,108980.0,108970.0,0.18122537]
[1748394558078,1.1916532,108980.0,108970.0,0.18122537]
[1748394558281,1.24885947,108980.0,108970.0,0.18122537]
[1748394558873,1.19165349,108980.0,108970.0,0.18122537]
[1748394559087,1.24885976,108980.0,108970.0,0.18122537]
[1748394559268,1.19165349,108980.0,108970.0,0.18122537]
[1748394560484,1.066108,108980.0,108970.0,0.18122537]
[1748394560682,0.705308,108980.0,108970.0,0.48573457]
[1748394560984,0.745308,108980.0,108970.0,0.48573457]
[1748394561276,0.515308,108980.0,108970.0,0.48573457]
[1748394561481,0.485308,108980.0,108970.0,0.30228877]
[1748394561880,0.485308,108980.0,108970.0,0.48573457]
[1748394562277,0.485308,108980.0,108970.0,0.52933457]
[1748394562677,0.365308,108980.0,108970.0,0.52933457]
[1748394562980,0.365308,108980.0,108970.0,0.48573457]
[1748394563574,0.365308,108980.0,108970.0,0.49573457]
[1748394564073,0.365308,108980.0,108970.0,0.18122537]
[1748394564381,0.8463714,108980.0,108970.0,0.18122537]
[1748394564975,1.2071714,108980.0,108970.0,0.18110537]
[1748394565184,1.2071714,108980.0,108970.0,0.18122537]
[1748394565482,1.2071714,108980.0,108970.0,0.18110537]
[1748394565691,1.21165349,108980.0,108970.0,0.18122537]
[1748394566581,1.21165349,108980.0,108970.0,0.01166814]
[1748394566888,1.21165349,108980.0,108970.0,0.03166814]
[1748394567485,1.21186897,108980.0,108970.0,0.03166814]
[1748394571691,1.63338897,108980.0,108970.0,0.03166814]
[1748394572890,1.63338897,108980.0,108970.0,4e-08]
[1748394573085,0.1834458,108970.0,108960.0,0.03265649]
[1748394573289,1.23257616,108970.0,108960.0,0.09265649]
[1748394573590,1.26979612,108970.0,108960.0,0.09277649]
[1748394573787,1.22682071,108970.0,108960.0,0.06012]
[1748394574287,1.22682071,108970.0,108960.0,0.06112]
[1748394575588,1.26976423,108970.0,108960.0,0.06112]
[1748394575780,1.26976423,108970.0,108960.0,0.06212]
[1748394576793,1.27424632,108970.0,108960.0,0.06012]
[1748394576986,1.27624632,108970.0,108960.0,0.06012]
[1748394577788,1.27176423,108970.0,108960.0,0.06012]
[1748394578384,0.1834626,108960.0,108950.0,0.00091781]
[1748394578685,0.1834795,108950.0,108940.0,0.03450247]
[1748394578890,1.19021794,108950.0,108940.0,0.14321247]
[1748394579287,1.19021794,108950.0,108940.0,0.14333247]
[1748394579689,1.14731136,108950.0,108940.0,0.14333247]
[1748394579990,1.14731136,108950.0,108940.0,0.14533247]
[1748394580192,1.11070014,108950.0,108940.0,0.14533247]
[1748394580391,1.14734025,108950.0,108940.0,0.14533247]
[1748394580592,1.14734025,108950.0,108940.0,0.14833247]
[1748394580991,1.16081021,108950.0,108940.0,0.14833247]
[1748394582189,1.03974681,108950.0,108940.0,0.14833247]
[1748394582385,0.65974681,108950.0,108940.0,0.33182877]
[1748394582590,0.85974681,108950.0,108940.0,0.45289217]
[1748394582893,0.95818681,108950.0,108940.0,0.45289217]
[1748394583091,0.85974681,108950.0,108940.0,0.46979217]
[1748394583685,0.84627685,108950.0,108940.0,0.46979217]
[1748394583892,0.24883674,108950.0,108940.0,0.46979217]
[1748394585797,0.24883674,108950.0,108940.0,0.31361969]
[1748394586091,0.44583674,108950.0,108940.0,0.31461969]
[1748394586298,0.25583674,108950.0,108940.0,0.1689634]
[1748394587901,0.25583674,108950.0,108940.0,0.3524597]
[1748394588104,0.25583674,108950.0,108940.0,0.1689634]
[1748394588896,0.25583674,108950.0,108940.0,0.3524597]
[1748394589197,0.25583674,108950.0,108940.0,1.1150477]
[1748394589198,0.22463674,108950.0,108940.0,1.1150477]
[1748394589989,0.22463674,108950.0,108940.0,1.2134477]
[1748394590190,0.22463674,108950.0,108940.0,1.1150477]
[1748394590389,0.22463674,108950.0,108940.0,1.5365677]
[1748394592202,0.22463674,108950.0,108940.0,1.6098677]
[1748394593103,0.22463674,108950.0,108940.0,1.65032755]
[1748394598194,0.25623674,108950.0,108940.0,1.68161755]
[1748394599597,0.25623674,108950.0,108940.0,1.26009755]
[1748394599803,0.25623674,108950.0,108940.0,1.68818955]
[1748394601497,0.25623674,108950.0,108940.0,1.1278497]
[1748394601704,0.25623674,108950.0,108940.0,1.1913263]
[1748394601898,0.25623674,108950.0,108940.0,1.23197114]
[1748394602301,0.25623674,108950.0,108940.0,1.3125097]
[1748394602500,0.25623674,108950.0,108940.0,1.3294097]
[1748394603808,0.25623674,108950.0,108940.0,1.63249668]
[1748394604415,0.07275724,108950.0,108940.0,1.63249668]
[1748394604600,0.25623664,108950.0,108940.0,1.63249668]
[1748394604907,0.04115724,108950.0,108940.0,1.65098468]
[1748394605294,0.04115724,108950.0,108940.0,1.78112728]
[1748394605500,0.04115724,108950.0,108940.0,1.88435511]
[1748394605709,0.04115724,108950.0,108940.0,1.90456813]
[1748394605903,0.04115724,108950.0,108940.0,1.97163797]
[1748394607020,0.01015724,108950.0,108940.0,2.34270137]
[1748394607202,0.01015724,108950.0,108940.0,2.23324787]
[1748394607507,0.01015724,108950.0,108940.0,3.73324787]
[1748394607714,0.01015724,108950.0,108940.0,3.64036873]
[1748394608317,0.04205724,108950.0,108940.0,3.39036873]
[1748394608514,0.03805724,108950.0,108940.0,3.34050186]
[1748394608697,0.03805724,108950.0,108940.0,3.48321105]
[1748394608698,0.04005724,108950.0,108940.0,3.48321105]
[1748394609414,0.03805724,108950.0,108940.0,3.48321105]
[1748394611805,0.03968804,108950.0,108940.0,3.48321105]
[1748394613014,0.03968804,108950.0,108940.0,3.39033191]
[1748394613605,0.03968804,108950.0,108940.0,3.47196266]
[1748394614619,0.03968804,108950.0,108940.0,3.83276266]
[1748394615323,0.03968804,108950.0,108940.0,3.71169926]
[1748394615614,0.03968804,108950.0,108940.0,3.85956266]
[1748394616307,0.07288804,108950.0,108940.0,3.85956266]
[1748394617022,0.07288804,108950.0,108940.0,3.81073261]
[1748394617309,0.10358804,108950.0,108940.0,3.85954766]
[1748394620510,0.10358804,108950.0,108940.0,3.79302426]
[1748394620711,0.10358804,108950.0,108940.0,3.91408766]
[1748394621413,0.10358804,108950.0,108940.0,3.91411367]
[1748394622316,0.10358804,108950.0,108940.0,3.91407367]
[1748394623515,0.10358804,108950.0,108940.0,3.95777367]
[1748394623913,0.10358804,108950.0,108940.0,3.87614292]
[1748394624116,0.10358804,108950.0,108940.0,3.95784551]
[1748394625516,0.10358804,108950.0,108940.0,3.87614292]
[1748394625715,0.10358804,108950.0,108940.0,3.87615354]
[1748394626113,0.10358804,108950.0,108940.0,3.15455354]
[1748394626314,0.10358804,108950.0,108940.0,3.87615354]
[1748394628710,0.10358804,108950.0,108940.0,3.96903268]
[1748394628920,0.07288804,108950.0,108940.0,3.96903268]
[1748394629520,0.00013752,108970.0,108940.0,4.14903464]
[1748394629707,0.00013752,108970.0,108960.0,1.20123566]
[1748394629909,0.7809502,109000.0,108990.0,0.1834121]
[1748394629910,0.04482503,109000.0,108990.0,0.1834121]
[1748394630109,0.36337115,109010.0,108990.0,1.37103424]
[1748394630314,0.67712519,109010.0,109000.0,0.6652587]
[1748394630610,0.67712519,109010.0,109000.0,0.82815606]
[1748394630921,0.67712519,109010.0,109000.0,0.73836266]
[1748394631120,1.15898859,109010.0,109000.0,0.15366402]
[1748394631419,0.79818859,109010.0,109000.0,0.28727952]
[1748394631623,0.68212519,109010.0,109000.0,0.40834292]
[1748394631810,0.68660728,109010.0,109000.0,0.28727952]
[1748394632215,0.68660728,109010.0,109000.0,0.64807952]
[1748394632415,0.68660728,109010.0,109000.0,0.28727952]
[1748394632618,0.72570728,109010.0,109000.0,0.28827952]
[1748394632818,0.72122519,109010.0,109000.0,0.28827952]
[1748394633024,0.72122519,109010.0,109000.0,0.30222378]
[1748394634322,0.72116794,109010.0,109000.0,0.30222378]
[1748394634716,0.78676794,109010.0,109000.0,0.30222378]
[1748394635825,1.26863134,109010.0,109000.0,0.11870828]
[1748394636122,1.26863134,109010.0,109000.0,0.11882828]
[1748394637320,1.14756794,109010.0,109000.0,0.30222358]
[1748394637911,0.78676794,109010.0,109000.0,0.66302358]
[1748394638316,0.59676794,109010.0,109000.0,0.78408698]
[1748394638625,0.46844078,109010.0,109000.0,0.78408698]
[1748394638824,0.423089,109010.0,109000.0,0.78408698]
[1748394639127,0.423089,109010.0,109000.0,0.81688698]
[1748394639322,0.423089,109010.0,109000.0,0.78408698]
[1748394639713,0.423089,109010.0,109000.0,0.85738698]
[1748394641022,0.293089,109010.0,109000.0,0.85738698]
[1748394641226,0.373089,109010.0,109000.0,0.37552358]
[1748394641530,1.16154085,109010.0,109000.0,0.37552358]
[1748394641725,1.16154085,109010.0,109000.0,0.19212828]
[1748394641931,1.16154085,109010.0,109000.0,0.19200828]
[1748394642433,1.16154085,109010.0,109000.0,0.37540358]
[1748394642732,1.16154109,109010.0,109000.0,0.37552358]
[1748394642924,1.92444109,109010.0,109000.0,0.14210828]
[1748394643230,1.92444109,109010.0,108990.0,0.00253154]
[1748394643231,0.1833953,109000.0,108990.0,0.00253154]
[1748394643435,1.34324739,109000.0,108990.0,0.00253154]
[1748394643628,0.1834121,108990.0,108980.0,0.0013763]
[1748394643825,1.18771563,108990.0,108980.0,0.01898228]